Cogmind - Beta 14 @@@ ROGUE MODE // 2025.03.16 @ 11:01:26 Player: winnking222 Result: Destroyed by Y-45 Defender with Beam Rifle Performance ------------- Evolutions (1) 500 Regions Visited (3) 600 Robots Destroyed (11) 55 Value Destroyed (284) 284 Prototype IDs (0) 0 Alien Tech Used (0) 0 Bonus (0) 0 TOTAL SCORE: 1439 Bonus ------- None Cogmind --------- Core Integrity 0/400 Matter 188/300 Energy 98/100 System Corruption 0% Temperature Cool (27) Movement Core (50) Location -9/Materials Parts ------- > --- POWER (1) -------- (None) > --- PROPULSION (4) --- (None) > --- UTILITY (2) ------ (None) > --- WEAPON (2) ------- (None) > --- INVENTORY (5) ---- Light Nuclear Core Cesium-ion Thruster Improved Utility Shielding High-powered Shotgun Improved Grenade Launcher Peak State ------------ > --- POWER ------------ (None) > --- PROPULSION ------- Light Treads Light Treads Cesium-ion Thruster > --- UTILITY ---------- Weight Redist. System > --- WEAPON ----------- High-powered Shotgun > --- INVENTORY -------- Light Nuclear Core Improved Utility Shielding High-powered Shotgun Improved Grenade Launcher [Rating: 11] Favorites ----------- Power None Propulsion Light Treads Treads Light Treads Flight Unit Cesium-ion Thruster Utility Weight Redist. System Device Weight Redist. System Protection Improved Utility Shielding Weapon High-powered Shotgun Ballistic Gun High-powered Shotgun Launcher Mini Grenade Launcher Build | -11 -10 -10 -9 ------- Run | Yrd Mat Min Mat Slots Evolved 2 | . . . 2 Power . | . . . . Propulsion 2 | . . . 2 Utility . | . . . . Weapon . | . . . . Parts Attached 16 | 3 1 3 9 Power . | . . . . Engine . | . . . . Core . | . . . . Reactor . | . . . . Propulsion 6 | 2 . . 4 Treads 5 | 2 . . 3 Leg . | . . . . Wheel . | . . . . Hover . | . . . . Flight 1 | . . . 1 Utility 3 | . . 1 2 Device 1 | . . . 1 Storage . | . . . . Processor . | . . . . Hackware . | . . . . Protection 2 | . . 1 1 Artifact . | . . . . Weapon 7 | 1 1 2 3 Energy Gun . | . . . . Energy Cannon . | . . . . Ballistic Gun 4 | 1 . 2 1 Ballistic Cannon . | . . . . Launcher 3 | . 1 . 2 Special Weapon . | . . . . Impact Weapon . | . . . . Slashing Weapon . | . . . . Piercing Weapon . | . . . . Special Melee Weapon . | . . . . Unidentified Prototypes . | . . . . Parts Lost 6 | . 1 . 5 Power . | . . . . Propulsion 3 | . . . 3 Utility 1 | . . . 1 Weapon 2 | . 1 . 1 Highest Loss Streak 3 | . 1 . 3 To Critical Strikes . | . . . . Average Slot Usage (%) 36 | . 39 45 33 Treads 20 | . 28 28 13 Device 4 | . . . 8 Ballistic Gun 8 | . 10 11 7 Launcher 3 | . . 5 4 Peak Build Rating 11 | 3 3 7 11 Average Rating 4 | 1 2 5 6 On Entrance 3 | . 3 3 6 Naked Turns 9 | . . . 9 Heaviest Build 9 | 2 3 6 9 Greatest Support 20 | 3 3 3 20 Greatest Overweight (x) 2 | . . 1 2 Average Overweight (x) . | . . . . Largest Inventory Capacity 5 | 5 5 5 5 Average Capacity 5 | 5 5 5 5 Most Carried 5 | 2 3 5 5 Average Carried 3 | . 1 4 4 Final Capacity 5 | 5 5 5 5 Final Carried 5 | . 3 5 5 Class Distribution -------------------- 100% | Mutant Dominant Class ---------------- Mutant | -10/Materials Mutant | -10/Mines Mutant | -9/Materials Resources | -11 -10 -10 -9 ----------- Run | Yrd Mat Min Mat Matter Collected 417 | 233 45 70 69 Remotely . | . . . . Salvage Created 226 | 50 73 . 103 Parts 21 | 5 7 . 9 Haulers Intercepted . | . . . . Recyclers Shooed . | . . . . Parts Field Recycled . | . . . . Retrieved Matter . | . . . . Parts Self-Destructed . | . . . . Prevented . | . . . . Kills | -11 -10 -10 -9 ------- Run | Yrd Mat Min Mat Combat Hostiles Destroyed 4 | . 1 . 3 Guns 2 | . 1 . 1 AOE 2 | . . . 2 Classes Destroyed 5 | 1 2 . 2 Worker 1 | . . . 1 Recycler 1 | 1 . . . Operator 5 | . 3 . 2 Grunt 3 | . 1 . 2 Sentry 1 | . . . 1 Best Kill Streak 4 | 1 2 . 4 Combat Bots Only 3 | . 1 . 3 Max Kills in Single Turn 3 | 1 1 . 3 Gunslinging . | . . . . Exploded 2 | . . . 2 Melee . | . . . . Uniques/NPCs Destroyed . | . . . . Combat | -11 -10 -10 -9 -------- Run | Yrd Mat Min Mat Hostile Shots Fired 135 | . 31 6 98 Missed 54 | . 9 4 41 Damage Taken 1184 | . 345 71 768 Core 501 | . 63 26 412 Absorbed by Shields . | . . . . Core Remaining (%) 82 | 100 . 64 . Volleys Fired 35 | 1 19 . 15 Largest 2 | 1 1 . 2 Hottest 61 | 20 30 . 61 Shots Fired 39 | 1 19 . 19 Gun 30 | 1 16 . 13 Cannon . | . . . . Launcher 9 | . 3 . 6 Special . | . . . . Kinetic 30 | 1 16 . 13 Thermal . | . . . . Explosive 9 | . 3 . 6 Electromagnetic . | . . . . Robot Hit Streak 12 | 1 12 . 5 Robot Miss Streak 3 | . 3 . 2 Penetration Max . | . . . . Secondary Targets . | . . . . Shots Hit Robots 29 | 1 15 . 13 Core Hits 16 | 1 6 . 9 Critical Kills . | . . . . Critical Parts Destroyed . | . . . . Critical Strikes . | . . . . Melee Attacks . | . . . . Impact . | . . . . Slashing . | . . . . Piercing . | . . . . Sneak Attacks . | . . . . Combat Hostiles . | . . . . Follow-up Attacks . | . . . . Damage Inflicted 712 | 15 231 . 466 Guns 340 | 15 146 . 179 Cannons . | . . . . Explosions 366 | . 85 . 281 Melee . | . . . . Ramming 6 | . . . 6 Kinetic 340 | 15 146 . 179 Thermal . | . . . . Explosive 366 | . 85 . 281 Electromagnetic . | . . . . Impact . | . . . . Slashing . | . . . . Piercing . | . . . . Highest Corruption . | . . . . Average Corruption . | . . . . Corruption Purged . | . . . . Corruption Blocked . | . . . . Overload Shots . | . . . . Overflow Damage 52 | . 16 . 36 Projectiles . | . . . . Explosions 52 | . 16 . 36 Melee . | . . . . Knockbacks . | . . . . Impact . | . . . . Kinetic . | . . . . Secondary . | . . . . Self-Inflicted Damage 119 | . 70 . 49 Shots 3 | . 2 . 1 Rammed 1 | . . . 1 Targets Rammed 1 | . . . 1 Kicked . | . . . . Crushed . | . . . . Highest Temperature 5 | . 5 . . Average Temperature 5 | . 5 . . Received Heat Transfer 498 | . 150 . 348 Siege Activations . | . . . . Robots Corrupted . | . . . . Combat Hostiles . | . . . . Parts Fried . | . . . . Impact Corruptions . | . . . . Robots Melted . | . . . . Combat Hostiles . | . . . . Parts Melted . | . . . . Heat Transferred . | . . . . Parts Sabotaged . | . . . . Parts Stolen . | . . . . Parts Stripped . | . . . . Power Chain Reactions . | . . . . Alert | -11 -10 -10 -9 ------- Run | Yrd Mat Min Mat Peak Influence 530 | 5 345 134 530 Initial 134 | . 3 134 52 Average 151 | 1 92 134 224 Maximum Alert Level 2 | . 1 . 2 Low Security (%) 75 | 100 92 100 54 Level 1 15 | . 7 . 27 Level 2 8 | . . . 17 Level 3 . | . . . . Level 4 . | . . . . Level 5 . | . . . . High Security . | . . . . Max Security . | . . . . Squads Dispatched 8 | . 4 . 4 Investigation 2 | . 1 . 1 Extermination . | . . . . Reinforcement 6 | . 3 . 3 Assault . | . . . . Garrison . | . . . . Intercept . | . . . . Searches Triggered . | . . . . Construction Impeded . | . . . . Haulers Reinforced . | . . . . Active Scanning Responses . | . . . . Cargo Convoy Interrupts . | . . . . Stealth | -11 -10 -10 -9 --------- Run | Yrd Mat Min Mat Distress Signals . | . . . . Communications Jammed . | . . . . Distress Signals . | . . . . Times Spotted 70 | . 24 16 30 Peak Tracking Total 21 | . 11 21 13 Tactical Retreats 10 | . 4 1 5 Traps | -11 -10 -10 -9 ------- Run | Yrd Mat Min Mat Traps Triggered 2 | . 1 . 1 Indirectly . | . . . . Trap Hack Attempts . | . . . . Triggered . | . . . . Disarmed . | . . . . Reprogrammed . | . . . . Reused . | . . . . Traps Extracted . | . . . . Installed . | . . . . Triggered . | . . . . Machines | -11 -10 -10 -9 ---------- Run | Yrd Mat Min Mat Machines Disabled 5 | . 3 . 2 Max in Single Turn 3 | . 3 . 2 Machines Repaired . | . . . . Machines Dismantled . | . . . . Machines Sabotaged . | . . . . Overloaded Fab Kills . | . . . . Hacking | -11 -10 -10 -9 --------- Run | Yrd Mat Min Mat Machines Accessed 3 | . 1 1 1 Terminals 2 | . 1 . 1 Fabricators . | . . . . Repair Stations . | . . . . Recycling Units . | . . . . Scanalyzers . | . . . . Garrison Access . | . . . . Total Hacks 4 | . 1 1 2 Successful 1 | . . 1 . Failed 3 | . 1 . 2 Catastrophic 2 | . 1 . 1 Database Lockouts . | . . . . Manual 3 | . 1 . 2 Terminals 3 | . 1 . 2 Fabricators . | . . . . Repair Stations . | . . . . Recycling Units . | . . . . Scanalyzers . | . . . . Garrison Access . | . . . . Terminal Hacks 1 | . . 1 . Open Door 1 | . . 1 . Fabricator Hacks . | . . . . Repair Station Hacks . | . . . . Recycling Unit Hacks . | . . . . Scanalyzer . | . . . . Garrison Access Hacks . | . . . . Unauthorized Hacks . | . . . . Terminals . | . . . . Fabricators . | . . . . Repair Stations . | . . . . Recycling Units . | . . . . Scanalyzers . | . . . . Garrison Access . | . . . . Data Cores Recovered . | . . . . Used . | . . . . Hacking Detections 2 | . 1 . 1 Full Trace Events 1 | . . . 1 Feedback Events . | . . . . Feedback Blocked . | . . . . Robot Schematics Acquired . | . . . . Robots Built . | . . . . Authchips . | . . . . Time . | . . . . Total Robot Build Rating . | . . . . Part Schematics Acquired . | . . . . Parts Built . | . . . . Authchips . | . . . . Time . | . . . . Total Part Build Rating . | . . . . Parts Repaired . | . . . . Time . | . . . . Parts Recycled . | . . . . Recycled Matter . | . . . . Retrieved Matter . | . . . . Retrieved Components . | . . . . Parts Scanalyzed . | . . . . Part Schematics Acquired . | . . . . Parts Damaged . | . . . . Bothacking | -11 -10 -10 -9 ------------ Run | Yrd Mat Min Mat Used RIF Installer . | . . . . Robots Hacked . | . . . . Non-combat . | . . . . Combat . | . . . . Robot Hacks Applied . | . . . . Relay Couplers Released . | . . . . Fabnet Peak Effective % . | . . . . Robots Rewired . | . . . . Allies Hacked . | . . . . Hacks Repelled . | . . . . Allies | -11 -10 -10 -9 -------- Run | Yrd Mat Min Mat Total Allies . | . . . . Largest Group . | . . . . Highest-Rated Group . | . . . . Highest-Rated Ally . | . . . . Total Orders . | . . . . Ally Attacks . | . . . . Total Damage . | . . . . Kills . | . . . . Allies Corrupted . | . . . . Allies Melted . | . . . . Intel | -11 -10 -10 -9 ------- Run | Yrd Mat Min Mat Robot Analysis Total . | . . . . Derelict Logs Recovered . | . . . . Drone Launches . | . . . . Drone Recoveries . | . . . . Exploration | -11 -10 -10 -9 ------------- Run | Yrd Mat Min Mat Turns Passed 482 | 42 164 48 228 Spaces Moved 681 | 68 241 70 302 Core 680 | 68 241 70 301 Treads 1 | . . . 1 Legs . | . . . . Wheels . | . . . . Hover . | . . . . Flight . | . . . . Fastest Speed 50 | 50 50 50 50 Average Speed 51 | 50 50 50 53 Slowest Speed 160 | 50 50 100 160 Overloaded Moves . | . . . . Propulsion Burnouts . | . . . . Robots Hopped . | . . . . Cave-ins Triggered . | . . . . Exploration Rate (%) 26 | 3 40 22 40 Regions Visited 3 Branch Regions 1 Pre-discovered Areas . | . . . . Known Exits Taken . | . . . . Unknown Exits Taken 3 | 1 1 1 . Scrap Searched . | . . . . Spaces Dug 13 | . . . 13 Terrain Destroyed 58 | . 15 . 43 Melee . | . . . . Projectile . | . . . . AOE 58 | . 15 . 43 Terrain Rammed . | . . . . Walls Destroyed . | . . . . Machines Disabled . | . . . . Actions | -11 -10 -10 -9 --------- Run | Yrd Mat Min Mat Total 771 | 74 264 83 350 Wait 19 | . . 1 18 Move 678 | 67 240 69 302 Hop . | . . . . Pick Up 11 | 3 4 4 . Fast Attach 7 | . . 2 5 Attach 9 | 3 1 1 4 Detach 6 | . . 2 4 Swap . | . . . . Drop 5 | . . 4 1 Fire 35 | 1 19 . 15 Melee . | . . . . Ram 1 | . . . 1 Kick . | . . . . Crush . | . . . . Escape Stasis . | . . . . Rewire . | . . . . Trap . | . . . . Miscellaneous . | . . . . Route ------- -11/Scrapyard -10/Materials -10/Mines -9/Materials History --------- Turn | Location | Event 4 | -11/Scrapyard | Discovered new exit (range 16) 43 | -11/Scrapyard | Entered Materials 183 | -10/Materials | Discovered new exit (range 10) 207 | -10/Materials | Entered Mines 210 | -10/Mines | Met a Derelict who couldn't figure out how to use a Trap Extractor 232 | -10/Mines | Assembled infested the area 252 | -10/Mines | Discovered new exit (range 7) 255 | -10/Mines | Entered Materials 255 | -9/Materials | Evolved 2 slots: Propulsion x2 303 | -9/Materials | Build established: Mutant 437 | -9/Materials | Core integrity fell below 50% 456 | -9/Materials | Lost 3 parts (2n1u) 458 | -9/Materials | Core integrity fell below 20% 483 | -9/Materials | Destroyed by Y-45 Defender with Beam Rifle Last Messages --------------- 00436_ Atomic Centrifuge disabled. 00436_ Terminal disabled. 00438_ K-01 Serf collects debris. 00439_ U-05 Engineer lays Concrete. 00441_ K-01 Serf collects debris. 00441_ U-05 Engineer lays Concrete. 00443_ Destroyed Hover Unit. 00443_ Destroyed Hacking Suite. 00443_ O-16 Technician destroyed. 00444_ K-01 Serf collects debris. 00444_ U-05 Engineer lays Concrete. 00444_ K-01 Serf collects debris. 00445_ K-01 Serf cleans the Atomic Centrifuge. 00445_ U-05 Engineer lays Concrete. 00447_ K-01 Serf collects debris. 00447_ U-05 Engineer lays Concrete. 00448_ K-01 Serf cleans the Atomic Centrifuge. 00449_ U-05 Engineer lays Concrete. 00474_ Mni. Grenade Launcher destroyed. 00483_ Critical hit (Burn: +37). Map ----- +----------------------------------------------------+ | ???????????????????????# #??????????? | | ???????????????????????# #??????????? | | ???????????????????????# #??????????? | | ???????????????????????# #??????????? | | ???????????????????????# #??????????? | | ???????????????????????# #??????????? | | ???????????????????????# #??????????? | | ???????????????????????# #??????????? | | ???????????????????????# #??????????? | | ???????????????????????# #??????????? | | ?????????????????????### ###????????? | | ?????????????????????# b #????????? | | ?????????????????????# #????????? | | ?????????????????????# #????????? | | ?????????????????????+ +????????? | | ?????????????????????# w# ???????? | | ?????????????????????# g # "??????? | | ?????????????????????# g #?""?????? | | ?????????????????????## ##?? ????? | | ??????????????????????# g #???##????? | | ??????????????????????# #?????????? | | ??????????????????????# #?????????? | | ??????????????????????# #?????????? | | ???????????????######## #?????????? | | ???????????? #?????????? | | ?????????????# ##### @Y #?????????? | | ??????????????????????# #?????????? | | ??????????????????????##### #?????????? | | ??????????????????????????# ####??????? | | ??????????????????????????# #??????? | | ??????????????????????????#+## #??????? | | ????????????????????????? # #??????? | | ??????????????????????? T # #??????? | | ?????????????????????# # #??????? | | ?????????????????????## ]]] # #??????? | | ??????????????????????# ]]] # #??????? | | ??????????????????????# ]]] # #??????? | | ??????????????????????######## #??????? | | ?????????????????????????????# #??????? | | ?????????????????????????????# #??##### | | ?????????????????????????????# #?? # | | ????????????????????????????## ## """ # | | ????????????????????????????# # "T" # | | ????????????????????????????# + # | | ????????????????????????????# # ! ! # | | ????????????????????????????##### # | | ?????????????????????????????????? ! # | | ??????????????????????????????????##### | | ??????????????????????????????????????? | | ??????????????????????????????????????? | +----------------------------------------------------+ Best States ------------- Heat Dissipation 28 Energy Generation 5 Energy Capacity 100 Matter Stores 300 Matter Capacity 300 Sight Range 16 Terrain Scan Density 10 Additional Mass Support 6 Evasion (%) 50 Recoil Reduction 2 Item Schematics ----------------- None Robot Schematics ------------------ None Fabricated ------------ Nothing Alien Tech Used ----------------- None Achievements -------------- None Challenges ------------ None Game ------ Seed ComponentNetworkAutogun Manual? 0 Play Time 00:11:25 Cumulative 34.7 hours Start 2025.03.16 @ 10:51:21 End 2025.03.16 @ 11:01:26 Sessions 1 Manual Loads 0 Difficulty Rogue Special Mode None Game No. 65 Rogue 65 Adventurer 0 Explorer 0 Win Type - Total 0 Types 0/0/0/0/0/0/0/0/0 Lore% 34 Gallery% 36 Achievement% 33 Wizard Run 0 Options --------- Layout 0 ASCII 0 Keyboard 0 Movement Mouse Keybinds 0 Fullscreen 1 Font 16/SmallcapsGlow Map View 75x55 Zoom Use 0% Tactical HUD 1 Map Filters NONE Filters NONE Steam 1 RUN: bf73825a-0e41-4750-85c0-d3eff73634de